fUSD/lending_fUSD_20241219
["ID","MTS","AMOUNT","RATE_DAILY","PERIOD"]
[346009026,1734622966575,-504.78,0.000212,2]
[346009027,1734622966600,-494.14,0.000212,2]
[346009028,1734622966624,-491.52,0.000212,2]
[346009029,1734622966648,-505.73,0.000212,2]
[346009030,1734622966963,-507.19,0.000212,2]
[346009031,1734622966989,-492.88,0.000212,2]
[346009032,1734622967016,-495.49,0.000212,2]
[346009033,1734622967039,-502.27,0.000212,2]
[346009034,1734622967063,-499.36,0.000212,2]
[346009035,1734622967087,-501.5,0.000212,2]
[346009036,1734622967110,-499.21,0.000212,2]
[346009037,1734622967134,-507.09,0.000212,2]
[346009038,1734622967162,-14806.38,0.00021212,2]
[346009039,1734622967184,-163.07,0.00021275,2]
[346009040,1734622967207,-337.47,0.00021321,2]
[346009041,1734622967232,-1000.0,0.00021329,2]
[346009042,1734622967259,-394.2,0.00021452,2]
[346009043,1734622967283,-250.0,0.00021522,2]
[346009044,1734622967306,-183.57,0.00021586,2]
[346009045,1734622967328,-5000.0,0.0002178,2]
[346009046,1734622967352,-9769.4311,0.00021817,2]
[346009047,1734622967376,-6774.8279,0.00021817,2]
[346009048,1734622967399,-500.0,0.00021917,4]
[346009049,1734622967425,-628.64432149,0.00021917,4]
[346009050,1734622967449,-500.0,0.00021917,4]
[346009051,1734622967473,-500.0,0.00021917,4]
[346009052,1734622967498,-500.0,0.00021917,4]
[346009053,1734622967528,-621.72,0.00021917,4]
[346009054,1734622967558,-500.0,0.00021917,4]
[346009055,1734622967583,-415.53139614,0.00021917,4]
[346009056,1734622967607,-500.0,0.00021917,4]
[346009057,1734622967632,-500.0,0.00021917,4]
[346009058,1734622967656,-500.0,0.00021917,4]
[346009059,1734622967680,-500.0,0.00021917,4]
[346009060,1734622967704,-500.0,0.00021917,4]
[346009061,1734622967726,-500.0,0.00021917,4]
[346009062,1734622967749,-500.0,0.00021917,4]
[346009063,1734622967775,-500.0,0.00021917,4]
[346009064,1734622967799,-500.0,0.00021917,4]
[346009065,1734622967822,-557.89,0.00021917,4]
[346009066,1734622967851,-552.97,0.00021917,4]
[346009067,1734622967873,-233.17801219,0.00021917,4]
[346009068,1734622967896,-500.0,0.00021917,4]
[346009069,1734622967919,-500.0,0.00021917,4]
[346009070,1734622967943,-500.0,0.00021917,4]
[346009071,1734622967966,-500.0,0.00021917,4]
[346009072,1734622967989,-500.0,0.00021917,4]
[346009073,1734622968015,-500.0,0.00021917,4]
[346009074,1734622968039,-500.0,0.00021917,4]
[346009075,1734622968061,-500.0,0.00021917,4]
[346009076,1734622968085,-257.92013917,0.00021917,4]
[346009077,1734622968112,-500.0,0.00021917,4]
[346009078,1734622968136,-500.0,0.00021917,4]
[346009079,1734622968164,-500.0,0.00021917,4]
[346009080,1734622968187,-500.0,0.00021917,4]
[346009081,1734622968212,-500.0,0.00021917,4]
[346009082,1734622968237,-500.0,0.00021917,4]
[346009083,1734622968263,-500.0,0.00021917,4]
[346009084,1734622968286,-500.0,0.00021917,4]
[346009085,1734622968309,-500.0,0.00021917,4]
[346009086,1734622968333,-200.0,0.00021917,4]
[346009087,1734622968357,-500.0,0.00021917,4]
[346009088,1734622968382,-500.0,0.00021917,4]
[346009089,1734622968410,-500.0,0.00021917,4]
[346009090,1734622968433,-500.0,0.00021917,4]
[346009091,1734622968458,-500.0,0.00021917,4]
[346009092,1734622968483,-500.0,0.00021917,4]
[346009093,1734622968509,-500.0,0.00021917,4]
[346009094,1734622968534,-500.0,0.00021917,4]
[346009095,1734622968558,-500.0,0.00021917,4]
[346009096,1734622968582,-301.18712932,0.00021917,4]
[346009097,1734622968604,-500.0,0.00021917,4]
[346009098,1734622968627,-500.0,0.00021917,4]
[346009099,1734622968650,-500.0,0.00021917,4]
[346009100,1734622968675,-500.0,0.00021917,4]
[346009101,1734622968698,-500.0,0.00021917,4]
[346009102,1734622968721,-500.0,0.00021917,4]
[346009103,1734622968744,-500.0,0.00021917,4]
[346009104,1734622968781,-500.0,0.00021917,4]
[346009105,1734622968807,-500.0,0.00021917,4]
[346009106,1734622968831,-500.0,0.00021917,4]
[346009107,1734622968855,-500.0,0.00021917,4]
[346009108,1734622968879,-500.0,0.00021917,4]
[346009109,1734622968903,-500.0,0.00021917,4]
[346009110,1734622968928,-527.08,0.00021917,4]
[346009111,1734622968951,-604.14863781,0.00021917,4]
[346009112,1734622968975,-500.0,0.00021917,4]
[346009113,1734622969002,-500.0,0.00021917,4]
[346009114,1734622969027,-500.0,0.00021917,4]
[346009115,1734622969050,-500.0,0.00021917,4]
[346009116,1734622969075,-500.0,0.00021917,4]
[346009117,1734622969100,-500.0,0.00021917,4]
[346009118,1734622969124,-500.0,0.00021917,4]
[346009119,1734622969148,-500.0,0.00021917,4]
[346009120,1734622969172,-500.0,0.00021917,4]
[346009121,1734622969197,-500.0,0.00021917,4]
[346009122,1734622969221,-500.0,0.00021917,4]
[346009123,1734622969261,-500.0,0.00021917,4]
[346009124,1734622969294,-500.0,0.00021917,4]
[346009125,1734622969328,-500.0,0.00021917,4]
[346009126,1734622969356,-500.0,0.00021917,4]
[346009127,1734622969388,-500.0,0.00021917,4]
[346009128,1734622969419,-500.0,0.00021917,4]
[346009129,1734622969449,-500.0,0.00021917,4]
[346009130,1734622969480,-500.0,0.00021917,4]
[346009131,1734622969514,-500.0,0.00021917,4]
[346009132,1734622969544,-500.0,0.00021917,4]
[346009133,1734622969571,-500.0,0.00021917,4]
[346009134,1734622969599,-500.0,0.00021917,4]
[346009135,1734622969630,-500.0,0.00021917,4]
[346009136,1734622969659,-500.0,0.00021917,4]
[346009137,1734622969693,-500.0,0.00021917,4]
[346009138,1734622969720,-500.0,0.00021917,4]
[346009139,1734622969749,-500.0,0.00021917,4]
[346009140,1734622969783,-500.0,0.00021917,2]
[346009141,1734622969811,-500.0,0.00021917,4]
[346009142,1734622969840,-500.0,0.00021917,4]
[346009143,1734622969867,-500.0,0.00021917,4]
[346009144,1734622969897,-500.0,0.00021917,4]
[346009145,1734622969924,-500.0,0.00021917,4]
[346009146,1734622969950,-500.0,0.00021917,4]
[346009147,1734622969976,-500.0,0.00021917,4]
[346009148,1734622970002,-500.0,0.00021917,4]
[346009149,1734622970031,-500.0,0.00021917,4]
[346009150,1734622970061,-500.0,0.00021917,4]
[346009151,1734622970090,-500.0,0.00021917,4]
[346009152,1734622970119,-500.0,0.00021917,4]
[346009153,1734622970145,-500.0,0.00021917,4]
[346009154,1734622970172,-500.0,0.00021917,4]
[346009155,1734622970199,-640.68263904,0.00021917,4]
[346009156,1734622970230,-500.0,0.00021917,4]
[346009157,1734622970263,-560.64,0.00021917,4]
[346009158,1734622970288,-500.0,0.00021917,4]
[346009159,1734622970313,-500.0,0.00021917,4]
[346009160,1734622970340,-500.0,0.00021917,4]
[346009161,1734622970371,-512.67433933,0.00021917,4]
[346009162,1734622970397,-500.0,0.00021917,4]
[346009163,1734622970427,-519.12,0.00021917,4]
[346009164,1734622970454,-500.0,0.00021917,4]
[346009165,1734622970479,-500.0,0.00021917,4]
[346009166,1734622970509,-500.0,0.00021917,4]
[346009167,1734622970537,-615.79,0.00021917,4]
[346009168,1734622970566,-500.0,0.00021917,4]
[346009169,1734622970595,-500.0,0.00021917,4]
[346009170,1734622970623,-238.86,0.00021917,4]
[346009171,1734622970651,-500.0,0.00021917,4]
[346009172,1734622970683,-214.6,0.00021917,4]
[346009173,1734622970710,-500.0,0.00021917,4]
[346009174,1734622970735,-347.38525452,0.00021917,4]
[346009175,1734622970762,-500.0,0.00021917,4]
[346009176,1734622970787,-500.0,0.00021917,4]
[346009177,1734622970814,-500.0,0.00021917,4]
[346009178,1734622970840,-500.0,0.00021917,4]
[346009179,1734622970867,-500.0,0.00021917,4]
[346009180,1734622970895,-500.0,0.00021917,4]
[346009181,1734622970923,-500.0,0.00021917,4]
[346009182,1734622970949,-500.0,0.00021917,4]
[346009183,1734622970976,-500.0,0.00021917,4]
[346009184,1734622971002,-507.13,0.00021917,4]
[346009185,1734622971030,-500.0,0.00021917,4]
[346009186,1734622971058,-500.0,0.00021917,4]
[346009187,1734622971084,-520.74,0.00021917,4]
[346009188,1734622971112,-500.0,0.00021917,4]
[346009189,1734622971139,-500.0,0.00021917,4]
[346009190,1734622971165,-500.0,0.00021917,4]
[346009191,1734622971191,-500.0,0.00021917,4]
[346009192,1734622971218,-500.0,0.00021917,4]
[346009193,1734622971244,-500.0,0.00021917,4]
[346009194,1734622971272,-500.0,0.00021917,4]
[346009195,1734622971298,-500.0,0.00021917,4]
[346009196,1734622971324,-500.0,0.00021917,4]
[346009197,1734622971350,-500.0,0.00021917,4]
[346009198,1734622971385,-500.0,0.00021917,4]
[346009199,1734622971424,-500.0,0.00021917,4]
[346009200,1734622971454,-500.0,0.00021917,4]
[346009201,1734622971484,-500.0,0.00021917,4]
[346009202,1734622971515,-500.0,0.00021917,4]
[346009203,1734622971543,-500.0,0.00021917,4]
[346009204,1734622971570,-500.0,0.00021917,4]
[346009205,1734622971597,-438.95,0.00021917,4]
[346009206,1734622971624,-500.0,0.00021917,4]
[346009207,1734622971652,-500.0,0.00021917,4]
[346009208,1734622971681,-500.0,0.00021917,4]
[346009209,1734622971707,-500.0,0.00021917,4]
[346009210,1734622971734,-500.0,0.00021917,4]
[346009211,1734622971762,-568.67,0.00021917,4]
[346009212,1734622971790,-500.0,0.00021917,4]
[346009213,1734622971818,-500.0,0.00021917,4]
[346009214,1734622971846,-500.0,0.00021917,4]
[346009215,1734622971875,-663.68,0.00021917,4]
[346009216,1734622971903,-500.0,0.00021917,4]
[346009217,1734622972242,-249.23147495,0.00021917,4]
[346009218,1734622972279,-500.0,0.00021917,4]
[346009219,1734622972303,-500.0,0.00021917,4]
[346009220,1734622972327,-711.82,0.00021917,4]
[346009221,1734622972351,-500.0,0.00021917,4]
[346009222,1734622972375,-500.0,0.00021917,4]
[346009223,1734622972400,-500.0,0.00021917,4]
[346009224,1734622972429,-500.0,0.00021917,4]
[346009225,1734622972452,-500.0,0.00021917,4]
[346009226,1734622972475,-500.0,0.00021917,4]
[346009227,1734622972501,-500.0,0.00021917,4]
[346009228,1734622972531,-210.24436148,0.00021917,4]
[346009229,1734622972557,-888.75,0.00021917,4]
[346009230,1734622972583,-500.0,0.00021917,4]
[346009231,1734622972606,-500.0,0.00021917,4]
[346009232,1734622972630,-500.0,0.00021917,4]
[346009233,1734622972654,-500.0,0.00021917,4]
[346009234,1734622972678,-500.0,0.00021917,4]
[346009235,1734622972702,-500.0,0.00021917,4]
[346009236,1734622972725,-516.95,0.00021917,4]
[346009237,1734622972748,-500.0,0.00021917,4]
[346009238,1734622972774,-500.0,0.00021917,4]
[346009239,1734622972798,-500.0,0.00021917,4]
[346009240,1734622972821,-500.0,0.00021917,4]
[346009241,1734622972847,-993.33,0.00021917,4]
[346009242,1734622972871,-1538.15,0.00021917,4]
[346009243,1734622972894,-500.0,0.00021917,4]
[346009244,1734622972918,-500.0,0.00021917,4]
[346009245,1734622972940,-500.0,0.00021917,4]
[346009246,1734622972965,-353.6303,0.00022091,2]
[346009247,1734622972988,-337.47,0.0002211,2]
[346009248,1734622973013,-500.0,0.00022191,4]
[346009249,1734622973036,-500.0,0.00022191,4]
[346009250,1734622973058,-500.0,0.00022191,4]
[346009251,1734622973081,-500.0,0.00022191,4]
[346009252,1734622973107,-500.0,0.00022191,4]
[346009253,1734622973133,-500.84,0.00022191,4]
[346009254,1734622973156,-324.4246444,0.00022191,4]
[346009255,1734622973179,-500.0,0.00022191,4]
[346009256,1734622973202,-312.36,0.00022191,4]
[346009257,1734622973226,-172.13,0.00022191,4]
[346009258,1734622973249,-176.25,0.00022191,4]
[346009259,1734622973276,-500.0,0.00022191,4]
[346009260,1734622973301,-553.22,0.00022191,4]
[346009261,1734622973326,-564.29,0.00022191,4]
[346009262,1734622973350,-500.0,0.00022191,4]
[346009263,1734622973372,-291.38,0.00022191,4]
[346009264,1734622973397,-500.0,0.00022191,4]
[346009265,1734622973424,-500.0,0.00022191,4]
[346009266,1734622973448,-500.0,0.00022191,4]
[346009267,1734622973474,-500.0,0.00022191,4]
[346009268,1734622973502,-568.67,0.00022191,4]
[346009269,1734622973534,-500.0,0.00022191,4]
[346009270,1734622973558,-500.0,0.00022191,4]
[346009271,1734622973584,-647.96,0.00022191,4]
[346009272,1734622973609,-663.68,0.00022191,4]
[346009273,1734622973635,-500.0,0.00022191,4]
[346009274,1734622973660,-355.84041531,0.00022191,4]
[346009275,1734622973687,-500.0,0.00022191,4]
[346009276,1734622973714,-711.82,0.00022191,4]
[346009277,1734622973741,-500.0,0.00022191,4]
[346009278,1734622973777,-500.0,0.00022191,4]
[346009279,1734622973805,-500.0,0.00022191,4]
[346009280,1734622973833,-500.0,0.00022191,4]
[346009281,1734622973859,-201.48,0.00022191,4]
[346009282,1734622973884,-500.0,0.00022191,4]
[346009283,1734622973909,-500.0,0.00022191,4]
[346009284,1734622973935,-888.75,0.00022191,4]
[346009285,1734622973959,-500.0,0.00022191,4]
[346009286,1734622973984,-500.0,0.00022191,4]
[346009287,1734622974016,-500.0,0.00022191,4]
[346009288,1734622974040,-216.87487854,0.00022191,4]
[346009289,1734622974064,-500.0,0.00022191,4]
[346009290,1734622974088,-440.41,0.00022191,4]
[346009291,1734622974112,-516.95,0.00022191,4]
[346009292,1734622974136,-500.0,0.00022191,4]
[346009293,1734622974160,-993.33,0.00022191,4]
[346009294,1734622974185,-1538.15,0.00022191,4]
[346009295,1734622974209,-500.0,0.00022191,4]
[346009296,1734622974232,-6409.0,0.00022329,2]
[346009297,1734622974260,-1000.0,0.00022365,2]
[346009298,1734622974285,-766.62,0.00022461,2]
[346009299,1734622974309,-500.0,0.00022465,4]
[346009300,1734622974335,-500.0,0.00022465,4]
[346009301,1734622974358,-500.0,0.00022465,4]
[346009302,1734622974382,-500.0,0.00022465,4]
[346009303,1734622974409,-500.0,0.00022465,4]
[346009304,1734622974433,-500.0,0.00022465,4]
[346009305,1734622974457,-500.0,0.00022465,4]
[346009306,1734622974481,-568.67,0.00022465,4]
[346009307,1734622974511,-500.0,0.00022465,4]
[346009308,1734622974538,-500.0,0.00022465,4]
[346009309,1734622974562,-663.68,0.00022465,4]
[346009310,1734622974589,-500.0,0.00022465,4]
[346009311,1734622974620,-500.0,0.00022465,4]
[346009312,1734622974644,-711.82,0.00022465,4]
[346009313,1734622974668,-500.0,0.00022465,4]
[346009314,1734622974691,-500.0,0.00022465,4]
[346009315,1734622974716,-500.0,0.00022465,4]
[346009316,1734622974740,-500.0,0.00022465,4]
[346009317,1734622974767,-500.0,0.00022465,4]
[346009318,1734622974791,-500.0,0.00022465,4]
[346009319,1734622974816,-888.75,0.00022465,4]
[346009320,1734622974842,-500.0,0.00022465,4]
[346009321,1734622974867,-500.0,0.00022465,4]
[346009322,1734622974890,-500.0,0.00022465,4]
[346009323,1734622974922,-500.0,0.00022465,4]
[346009324,1734622974946,-516.95,0.00022465,4]
[346009325,1734622974972,-993.33,0.00022465,4]
[346009326,1734622974997,-1538.15,0.00022465,4]
[346009327,1734622975023,-500.0,0.00022465,4]
[346009328,1734622975048,-3716.63,0.00022588,2]
[346009329,1734622975072,-535.773,0.00022588,2]
[346009330,1734622975095,-150.0,0.00022588,2]
[346009331,1734622975118,-644.48,0.00022737,4]
[346009332,1734622975141,-544.22,0.00022737,4]
[346009333,1734622975164,-500.0,0.00022737,4]
[346009334,1734622975188,-500.0,0.00022737,4]
[346009335,1734622975210,-500.0,0.00022737,4]
[346009336,1734622975233,-560.36,0.00022737,4]
[346009337,1734622975259,-500.0,0.00022737,4]
[346009338,1734622975282,-500.0,0.00022737,4]
[346009339,1734622975304,-219.04075396,0.00022737,4]
[346009340,1734622975329,-500.0,0.00022737,4]
[346009341,1734622975351,-500.0,0.00022737,4]
[346009342,1734622975375,-500.0,0.00022737,4]
[346009343,1734622975399,-500.0,0.00022737,4]
[346009344,1734622975429,-500.0,0.00022737,4]
[346009345,1734622975589,-500.0,0.00022737,4]
[346009346,1734622975612,-500.0,0.00022737,4]
[346009347,1734622975636,-903.37,0.00022737,4]
[346009348,1734622975659,-500.0,0.00022737,4]
[346009349,1734622975682,-500.0,0.00022737,4]
[346009350,1734622975705,-500.0,0.00022737,4]
[346009351,1734622975728,-500.0,0.00022737,4]
[346009352,1734622975752,-500.0,0.00022737,4]
[346009353,1734622975777,-500.0,0.00022737,4]
[346009354,1734622975799,-450.3255702,0.00022737,4]
[346009355,1734622975821,-500.0,0.00022737,4]
[346009356,1734622975843,-500.0,0.00022737,4]
[346009357,1734622975866,-500.0,0.00022737,4]
[346009358,1734622975890,-500.0,0.00022737,4]
[346009359,1734622975913,-500.0,0.00022737,4]
[346009360,1734622975936,-500.0,0.00022737,4]
[346009361,1734622975958,-501.25088276,0.00022737,4]
[346009362,1734622975980,-500.0,0.00022737,4]
[346009363,1734622976002,-502.17337176,0.00022737,4]
[346009364,1734622976031,-500.0,0.00022737,4]
[346009365,1734622976060,-502.41468819,0.00022737,4]
[346009366,1734622976084,-578.46,0.00022737,4]
[346009367,1734622976107,-500.0,0.00022737,4]
[346009368,1734622976130,-500.0,0.00022737,4]
[346009369,1734622976154,-500.0,0.00022737,4]
[346009370,1734622976177,-500.0,0.00022737,4]
[346009371,1734622976199,-500.0,0.00022737,4]
[346009372,1734622976223,-500.0,0.00022737,4]
[346009373,1734622976245,-500.0,0.00022737,4]
[346009374,1734622976271,-500.0,0.00022737,4]
[346009375,1734622976295,-500.0,0.00022737,4]
[346009376,1734622976320,-500.0,0.00022737,4]
[346009377,1734622976343,-500.0,0.00022737,4]
[346009378,1734622976366,-646.23,0.00022738,4]
[346009379,1734622976389,-500.0,0.00022738,4]
[346009380,1734622976415,-500.0,0.00022738,4]
[346009381,1734622976439,-500.0,0.00022738,4]
[346009382,1734622976464,-500.0,0.00022738,4]
[346009383,1734622976489,-500.0,0.00022738,4]
[346009384,1734622976521,-500.0,0.00022738,4]
[346009385,1734622976546,-500.0,0.00022738,4]
[346009386,1734622976573,-500.0,0.00022738,4]
[346009387,1734622976600,-500.0,0.00022738,4]
[346009388,1734622976625,-500.0,0.00022738,4]
[346009389,1734622976651,-1342.54,0.00022738,4]
[346009390,1734622976677,-500.0,0.00022738,4]
[346009391,1734622976702,-659.49,0.00022738,4]
[346009392,1734622976727,-1281.1,0.00022738,4]
[346009393,1734622976751,-500.0,0.00022738,4]
[346009394,1734622976779,-500.0,0.00022738,4]
[346009395,1734622976803,-500.0,0.00022738,4]
[346009396,1734622976827,-500.0,0.00022738,4]
[346009397,1734622976851,-500.0,0.00022738,4]
[346009398,1734622976873,-500.0,0.00022738,4]
[346009399,1734622976896,-500.0,0.00022738,4]
[346009400,1734622976921,-500.0,0.00022738,4]
[346009401,1734622976944,-500.0,0.00022738,4]
[346009402,1734622976968,-500.0,0.00022739,4]
[346009403,1734622976991,-500.0,0.00022739,4]
[346009404,1734622977020,-500.0,0.00022739,4]
[346009405,1734622977046,-462.6,0.00022739,4]
[346009406,1734622977074,-500.0,0.00022739,4]
[346009407,1734622977102,-500.0,0.00022739,4]
[346009408,1734622977129,-201.97481342,0.00022739,4]
[346009409,1734622977154,-568.67,0.00022739,4]
[346009410,1734622977180,-500.0,0.00022739,4]
[346009411,1734622977205,-500.0,0.00022739,4]
[346009412,1734622977229,-663.68,0.00022739,4]
[346009413,1734622977253,-500.0,0.00022739,4]
[346009414,1734622977282,-500.0,0.00022739,4]
[346009415,1734622977307,-711.82,0.00022739,4]
[346009416,1734622977331,-500.0,0.00022739,4]
[346009417,1734622977354,-500.0,0.00022739,4]
[346009418,1734622977379,-500.0,0.00022739,4]
[346009419,1734622977403,-500.0,0.00022739,4]
[346009420,1734622977431,-500.0,0.00022739,4]
[346009421,1734622977456,-500.0,0.00022739,4]
[346009422,1734622977483,-888.75,0.00022739,4]
[346009423,1734622977517,-500.0,0.00022739,4]
[346009424,1734622977541,-500.0,0.00022739,4]
[346009425,1734622977565,-500.0,0.00022739,4]
[346009426,1734622977590,-500.0,0.00022739,4]
[346009427,1734622977613,-516.95,0.00022739,4]
[346009428,1734622977638,-993.33,0.00022739,4]
[346009429,1734622977662,-1538.15,0.00022739,4]
[346009430,1734622977686,-500.0,0.00022739,4]
[346009431,1734622977710,-501.92,0.0002278,2]
[346009432,1734622977733,-527.483,0.00022821,2]
[346009433,1734622977756,-337.47,0.00022899,2]
[346009434,1734622977784,-934.24,0.000229,2]
[346009435,1734622977808,-2289.0,0.000229,3]
[346009436,1734622977832,-13560.91500297,0.00022913,2]
[346009437,1734622977856,-494.46,0.00022917,2]
[346009438,1734622977879,-496.34,0.00022917,2]
[346009439,1734622977901,-208.0,0.0002296,2]
[346009440,1734622977923,-59866.59411053,0.00023,2]
[346009441,1734622977946,-158.51,0.00023011,4]
[346009442,1734622978001,-560.36,0.00023011,4]
[346009443,1734622978029,-500.0,0.00023011,4]
[346009444,1734622978053,-500.0,0.00023011,4]
[346009445,1734622978077,-903.37,0.00023011,4]
[346009446,1734622978101,-637.16304877,0.00023011,4]
[346009447,1734622978124,-500.0,0.00023011,4]
[346009448,1734622978147,-500.0,0.00023011,4]
[346009449,1734622978170,-500.0,0.00023011,4]
[346009450,1734622978193,-500.0,0.00023011,4]
[346009451,1734622978216,-578.46,0.00023011,4]
[346009452,1734622978238,-500.0,0.00023011,4]
[346009453,1734622978263,-500.0,0.00023011,4]
[346009454,1734622978287,-500.0,0.00023011,4]
[346009455,1734622978310,-500.0,0.00023011,4]
[346009456,1734622978334,-500.0,0.00023011,4]
[346009457,1734622978358,-500.0,0.00023011,4]
[346009458,1734622978382,-500.0,0.00023011,4]
[346009459,1734622978410,-646.23,0.00023012,4]
[346009460,1734622978435,-500.0,0.00023012,4]
[346009461,1734622978461,-500.0,0.00023012,4]
[346009462,1734622978484,-500.0,0.00023012,4]
[346009463,1734622978516,-500.0,0.00023012,4]
[346009464,1734622978539,-500.0,0.00023012,4]
[346009465,1734622978563,-500.0,0.00023012,4]
[346009466,1734622978588,-500.0,0.00023012,4]
[346009467,1734622978612,-500.0,0.00023012,4]
[346009468,1734622978636,-500.0,0.00023012,4]
[346009469,1734622978660,-1342.54,0.00023012,4]
[346009470,1734622978683,-500.0,0.00023012,4]
[346009471,1734622978707,-659.49,0.00023012,4]
[346009472,1734622978730,-1281.1,0.00023012,4]
[346009473,1734622978753,-500.0,0.00023012,4]
[346009474,1734622978784,-500.0,0.00023012,4]
[346009475,1734622978808,-500.0,0.00023012,4]
[346009476,1734622978833,-500.0,0.00023012,4]
[346009477,1734622978856,-500.0,0.00023012,4]
[346009478,1734622978881,-500.0,0.00023012,4]
[346009479,1734622978904,-500.0,0.00023012,4]
[346009480,1734622978929,-500.0,0.00023012,4]
[346009481,1734622978954,-500.0,0.00023012,4]
[346009482,1734622978978,-500.0,0.00023013,4]
[346009483,1734622979002,-500.0,0.00023013,4]
[346009484,1734622979030,-500.0,0.00023013,4]
[346009485,1734622979055,-500.0,0.00023013,4]
[346009486,1734622979079,-500.0,0.00023013,4]
[346009487,1734622979107,-568.67,0.00023013,4]
[346009488,1734622979132,-500.0,0.00023013,4]
[346009489,1734622979155,-500.0,0.00023013,4]
[346009490,1734622979179,-663.68,0.00023013,4]
[346009491,1734622979202,-500.0,0.00023013,4]
[346009492,1734622979225,-500.0,0.00023013,4]
[346009493,1734622979249,-711.82,0.00023013,4]
[346009494,1734622979278,-500.0,0.00023013,4]
[346009495,1734622979302,-500.0,0.00023013,4]
[346009496,1734622979327,-500.0,0.00023013,4]
[346009497,1734622979352,-500.0,0.00023013,4]
[346009498,1734622979376,-500.0,0.00023013,4]
[346009499,1734622979401,-500.0,0.00023013,4]
[346009500,1734622979428,-888.75,0.00023013,4]
[346009501,1734622979455,-500.0,0.00023013,4]
[346009502,1734622979478,-500.0,0.00023013,4]
[346009503,1734622979503,-500.0,0.00023013,4]
[346009504,1734622979531,-500.0,0.00023013,4]
[346009505,1734622979555,-516.95,0.00023013,4]
[346009506,1734622979580,-993.33,0.00023013,4]
[346009507,1734622979604,-1538.15,0.00023013,4]
[346009508,1734622979628,-500.0,0.00023013,4]
[346009509,1734622979652,-276.04581,0.00023088,7]
[346009510,1734622979676,-13560.91500289,0.0002312,2]
[346009511,1734622979699,-1547.88619,0.0002326,2]
[346009512,1734622979723,-454.396,0.0002328,2]
[346009513,1734622979747,-560.36,0.00023285,4]
[346009514,1734622979774,-500.0,0.00023285,4]
[346009515,1734622979799,-500.0,0.00023285,4]
[346009516,1734622979822,-903.37,0.00023285,4]
[346009517,1734622979845,-500.0,0.00023285,4]
[346009518,1734622979868,-527.32732933,0.00023285,4]
[346009519,1734622979891,-500.0,0.00023285,4]
[346009520,1734622979914,-537.02,0.00023285,4]
[346009521,1734622979937,-578.46,0.00023285,4]
[346009522,1734622979960,-500.0,0.00023285,4]
[346009523,1734622979984,-500.0,0.00023285,4]
[346009524,1734622980010,-500.0,0.00023285,4]
[346009525,1734622980033,-500.0,0.00023285,4]